fUSD/lending_fUSD_20251109
["ID","MTS","AMOUNT","RATE_DAILY","PERIOD"]
[393443703,1762661440991,-250.0,0.00018,2]
[393443704,1762661441001,-250.0,0.00018,2]
[393443705,1762661441011,-250.0,0.00018,2]
[393443706,1762661441019,-250.0,0.00018,2]
[393443707,1762661441028,-250.0,0.00018,2]
[393443708,1762661441037,-250.0,0.00018,2]
[393443709,1762661441047,-250.0,0.00018,2]
[393443710,1762661441056,-250.0,0.00018,2]
[393443711,1762661441066,-250.0,0.00018,2]
[393443712,1762661441075,-250.0,0.00018,2]
[393443713,1762661441084,-250.0,0.00018,2]
[393443714,1762661441094,-250.0,0.00018,2]
[393443715,1762661441104,-250.0,0.00018,2]
[393443716,1762661441113,-250.0,0.00018,2]
[393443717,1762661441123,-250.0,0.00018,2]
[393443718,1762661441133,-250.0,0.00018,2]
[393443719,1762661441143,-250.0,0.00018,2]
[393443720,1762661441152,-250.0,0.00018,2]
[393443721,1762661441161,-250.0,0.00018,2]
[393443722,1762661441170,-250.0,0.00018,2]
[393443723,1762661441180,-250.0,0.00018,2]
[393443724,1762661441190,-250.0,0.00018,2]
[393443725,1762661441199,-250.0,0.00018,2]
[393443726,1762661441209,-281.4,0.00018,2]
[393443727,1762661441219,-150.0,0.00018,2]
[393443728,1762661441229,-1293.03134316,0.00018,2]
[393443729,1762661441239,-928.31,0.00018,7]
[393443730,1762661441249,-46178.3955239,0.00018,2]
[393443731,1762661441259,-200.0,0.00018,2]
[393443732,1762661441269,-1181.9898234,0.00018,2]
[393443733,1762661441279,-12954.9551162,0.00018,2]
[393443734,1762661441288,-150.0,0.00018,2]
[393443735,1762661441299,-3227.78169785,0.00018,2]
[393443736,1762661441311,-150.0,0.00018,2]
[393443737,1762661441320,-2375.20890159,0.00018,2]
[393443738,1762661441331,-200.0,0.00018,2]
[393443739,1762661441343,-333.0,0.00018024,2]
[393443740,1762661441353,-150.0,0.00018036,2]
[393443741,1762661441362,-150.0,0.00018036,2]
[393443742,1762661441372,-500.0,0.00018036,2]
[393443743,1762661441384,-500.0,0.00018036,2]
[393443744,1762661441394,-533.0,0.00018036,2]
[393443745,1762661441403,-500.0,0.00018036,2]
[393443746,1762661441413,-1268.0,0.0001806,2]
[393443747,1762661441422,-1000.0,0.00018082,2]
[393443748,1762661441432,-1268.0,0.00018091,2]
[393443749,1762661441441,-1762.97906351,0.000181,2]
[393443750,1762661441451,-1213.0,0.00018101,2]
[393443751,1762661441461,-166.66,0.00018118,2]
[393443752,1762661441472,-333.0,0.00018132,2]
[393443753,1762661441482,-288.89431837,0.00018164,2]
[393443754,1762661441492,-300.0,0.00018173,2]
[393443755,1762661441501,-261.10495616,0.00018173,2]
[393443756,1762661441511,-193.65862463,0.00018173,2]
[393443757,1762661441521,-500.0,0.00018173,2]
[393443758,1762661441530,-500.0,0.00018173,2]
[393443759,1762661441540,-533.0,0.00018173,2]
[393443760,1762661441550,-500.0,0.00018173,2]
[393443761,1762661441559,-230.0,0.00018178,2]
[393443762,1762661441569,-200.0,0.0001818,2]
[393443763,1762661441579,-1000.0,0.000182,2]
[393443764,1762661441588,-1186.96,0.00018213,2]
[393443765,1762661441597,-372.17540169,0.00018213,2]
[393443766,1762661441607,-162.61440694,0.00018228,2]
[393443767,1762661441617,-1268.0,0.00018245,2]
[393443768,1762661441626,-500.0,0.0001831,2]
[393443769,1762661441635,-500.0,0.0001831,2]
[393443770,1762661441644,-533.0,0.0001831,2]
[393443771,1762661441654,-500.0,0.0001831,2]
[393443772,1762661441664,-1268.0,0.00018325,2]
[393443773,1762661441673,-1268.0,0.00018335,2]
[393443774,1762661441683,-666.0,0.00018355,2]
[393443775,1762661441692,-666.0,0.00018355,2]
[393443776,1762661441702,-87614.51,0.00018356,2]
[393443777,1762661441712,-200.0,0.00018362,2]
[393443778,1762661441722,-1268.0,0.00018375,2]
[393443779,1762661441731,-447.0,0.000184,2]
[393443780,1762661441741,-168.0,0.00018411,2]
[393443781,1762661441751,-168.0,0.00018418,2]
[393443782,1762661441761,-420.0,0.00018426,2]
[393443783,1762661441772,-231.92420023,0.00018447,2]
[393443784,1762661441782,-599.72393622,0.00018447,2]
[393443785,1762661441791,-533.0,0.00018447,2]
[393443786,1762661441801,-500.0,0.00018447,2]
[393443787,1762661441811,-166.67,0.00018486,2]
[393443788,1762661441820,-1186.96,0.00018487,2]
[393443789,1762661441830,-1098.32,0.00018493,2]
[393443790,1762661441840,-1278.45375779,0.000185,2]
[393443791,1762661441850,-827.0,0.000185,2]
[393443792,1762661441860,-827.0,0.000185,2]
[393443793,1762661441870,-946.28859117,0.000185,2]
[393443794,1762661441879,-168.0,0.00018515,2]
[393443795,1762661441890,-1680.0,0.00018518,2]
[393443796,1762661441901,-2390.01553785,0.0001852,2]
[393443797,1762661441910,-502.0,0.00018521,2]
[393443798,1762661441920,-998.86255117,0.00018521,2]
[393443799,1762661441930,-500.0,0.00018521,2]
[393443800,1762661441939,-1000.0,0.00018521,2]
[393443801,1762661441949,-503.47267171,0.00018521,2]
[393443802,1762661441958,-500.0,0.00018521,2]
[393443803,1762661441968,-676.90621989,0.00018521,2]
[393443804,1762661441978,-927.37223651,0.00018521,2]
[393443805,1762661441987,-1000.0,0.00018521,2]
[393443806,1762661441997,-500.0,0.00018521,2]
[393443807,1762661442006,-1268.0,0.00018523,2]
[393443808,1762661442015,-372.17540169,0.00018527,2]
[393443809,1762661442024,-200.0,0.00018545,2]
[393443810,1762661442034,-1892.46908594,0.00018546,2]
[393443811,1762661442043,-195.0,0.00018546,2]
[393443812,1762661442054,-284.32759898,0.00018546,2]
[393443813,1762661442064,-300.0,0.00018555,2]
[393443814,1762661442074,-300.0,0.00018555,2]
[393443815,1762661442085,-200.0,0.00018555,2]
[393443816,1762661442096,-2108.5471439,0.00018556,4]
[393443817,1762661442106,-396.81380778,0.00018556,2]
[393443818,1762661442115,-195.0,0.00018556,2]
[393443819,1762661442125,-250.0,0.00018567,2]
[393443820,1762661442135,-533.0,0.00018584,2]
[393443821,1762661442144,-500.0,0.00018584,2]
[393443822,1762661442155,-250.0,0.00018647,2]
[393443823,1762661442165,-195.0,0.00018647,2]
[393443824,1762661442175,-168.0,0.000187,2]
[393443825,1762661442185,-288.89431837,0.00018712,2]
[393443826,1762661442194,-250.0,0.00018715,2]
[393443827,1762661442204,-2500.0,0.00018715,2]
[393443828,1762661442213,-300.0,0.00018715,2]
[393443829,1762661442223,-300.0,0.00018715,2]
[393443830,1762661442233,-533.0,0.00018721,2]
[393443831,1762661442243,-500.0,0.00018721,2]
[393443832,1762661442254,-240.66,0.00018723,2]
[393443833,1762661442263,-168.0,0.00018752,2]
[393443834,1762661442272,-223.05,0.00018754,2]
[393443835,1762661442283,-1000.0,0.0001876,2]
[393443836,1762661442293,-1186.96,0.00018761,2]
[393443837,1762661442306,-168.0,0.00018798,2]
[393443838,1762661442315,-151.53,0.000188,2]
[393443839,1762661442325,-510.45462,0.0001882,2]
[393443840,1762661442335,-168.0,0.00018838,2]
[393443841,1762661442346,-372.17540169,0.0001884,2]
[393443842,1762661442356,-533.0,0.00018858,2]
[393443843,1762661442365,-500.0,0.00018858,2]
[393443844,1762661442376,-1000.0,0.00018968,2]
[393443845,1762661442386,-526.49985926,0.00018973,2]
[393443846,1762661442395,-500.0,0.00018973,2]
[393443847,1762661442405,-500.96833596,0.00018973,2]
[393443848,1762661442415,-500.0,0.00018973,2]
[393443849,1762661442425,-500.0,0.00018973,2]
[393443850,1762661442434,-500.0,0.00018973,2]
[393443851,1762661442444,-507.04189464,0.00018973,2]
[393443852,1762661442454,-502.42842853,0.00018973,2]
[393443853,1762661442464,-163.72327271,0.00018973,2]
[393443854,1762661442473,-501.45740675,0.00018973,2]
[393443855,1762661442482,-500.0,0.00018973,2]
[393443856,1762661442492,-500.0,0.00018973,2]
[393443857,1762661442501,-326.92607289,0.00018973,2]
[393443858,1762661442511,-218.74086562,0.00018973,2]
[393443859,1762661442520,-500.0,0.00018973,2]
[393443860,1762661442530,-500.0,0.00018973,2]
[393443861,1762661442540,-305.03846107,0.00018973,2]
[393443862,1762661442550,-533.0,0.00018995,2]
[393443863,1762661442559,-500.0,0.00018995,2]
[393443864,1762661442569,-666.0,0.00018999,2]
[393443865,1762661442579,-5120.93863646,0.00019,2]
[393443866,1762661442588,-2090.88235712,0.00019,2]
[393443867,1762661442598,-783.84494861,0.00019,2]
[393443868,1762661442607,-3416.09533425,0.00019,5]
[393443869,1762661442616,-300.0,0.00019,2]
[393443870,1762661442626,-182980.48178006,0.00019,2]
[393443871,1762661442636,-166.66,0.00019015,2]
[393443872,1762661442645,-1186.96,0.00019035,2]
[393443873,1762661442655,-834.97782505,0.00019068,2]
[393443874,1762661442664,-1508.31279467,0.00019068,2]
[393443875,1762661442674,-533.0,0.00019132,2]
[393443876,1762661442684,-500.0,0.00019132,2]
[393443877,1762661442694,-168.0,0.00019137,2]
[393443878,1762661442703,-372.17540169,0.00019153,2]
[393443879,1762661442713,-2300.84,0.00019178,2]
[393443880,1762661442722,-168.0,0.0001919,2]
[393443881,1762661442732,-288.89431837,0.0001926,2]
[393443882,1762661442741,-533.0,0.00019269,2]
[393443883,1762661442750,-500.0,0.00019269,2]
[393443884,1762661442760,-1186.96,0.00019309,2]
[393443885,1762661442770,-1098.56,0.00019315,2]
[393443886,1762661442779,-548.36,0.00019315,2]
[393443887,1762661442790,-1982.30657269,0.00019398,7]
[393443888,1762661442799,-533.0,0.00019406,2]
[393443889,1762661442809,-500.0,0.00019406,2]
[393443890,1762661442819,-1000.0,0.00019438,2]
[393443891,1762661442828,-166.67,0.0001945,2]
[393443892,1762661442838,-372.17540169,0.00019467,2]
[393443893,1762661442847,-484.660239,0.00019504,3]
[393443895,1762661442856,-201.25645,0.00019504,3]
[393443897,1762661442866,-570.297092,0.00019504,3]
[393443899,1762661442876,-501.42288003,0.00019521,2]
[393443901,1762661442886,-1094.29200881,0.00019521,2]
[393443903,1762661442895,-1000.0,0.00019521,2]
[393443905,1762661442904,-562.61261097,0.00019521,2]
[393443906,1762661442914,-500.97801948,0.00019521,2]
[393443907,1762661442923,-501.75808297,0.00019521,2]
[393443908,1762661442932,-1003.9039651,0.00019521,2]
[393443909,1762661442942,-868.30854684,0.00019521,2]
[393443910,1762661442952,-300.0,0.00019543,2]
[393443911,1762661442962,-533.0,0.00019543,2]
[393443912,1762661442971,-500.0,0.00019543,2]
[393443913,1762661442980,-1186.96,0.00019583,2]
[393443914,1762661442990,-240.66,0.00019659,2]
[393443915,1762661443000,-533.0,0.0001968,2]
[393443916,1762661443009,-500.0,0.0001968,2]
[393443917,1762661443019,-375.91,0.0001968,2]
[393443918,1762661443028,-300.0,0.00019722,2]
[393443919,1762661443038,-1098.32,0.00019726,2]
[393443920,1762661443047,-300.0,0.00019731,2]
[393443921,1762661443057,-300.0,0.00019743,2]
[393443922,1762661443066,-300.0,0.00019749,2]
[393443923,1762661443075,-300.0,0.00019752,2]
[393443924,1762661443085,-300.0,0.00019769,2]
[393443925,1762661443095,-372.17540169,0.0001978,2]
[393443926,1762661443105,-150.0,0.00019789,2]
[393443927,1762661443114,-300.0,0.00019791,2]
[393443928,1762661443123,-300.0,0.00019797,2]
[393443929,1762661443133,-300.0,0.00019802,2]
[393443930,1762661443142,-300.0,0.00019805,2]
[393443931,1762661443151,-288.89431837,0.00019807,2]
[393443932,1762661443161,-533.0,0.00019817,2]
[393443933,1762661443170,-500.0,0.00019817,2]
[393443934,1762661443287,-510.45462,0.0001982,2]
[393443935,1762661443298,-1186.96,0.00019857,2]
[393443936,1762661443311,-150.0,0.00019869,2]
[393443937,1762661443320,-517.86787982,0.00019873,2]
[393443938,1762661443329,-151.0,0.00019877,2]
[393443939,1762661443338,-671.15214123,0.00019879,2]
[393443940,1762661443348,-393042.58509998,0.0001988,2]
[393443941,1762661443358,-300.0,0.00019887,2]
[393443942,1762661443368,-150.0,0.00019893,2]
[393443943,1762661443379,-4874.99971981,0.000199,3]
[393443944,1762661443388,-300.0,0.00019911,2]
[393443945,1762661443398,-300.0,0.00019924,2]
[393443946,1762661443407,-300.0,0.0001993,2]
[393443947,1762661443417,-300.0,0.00019931,2]
[393443948,1762661443426,-533.0,0.00019954,2]
[393443949,1762661443436,-500.0,0.00019954,2]
[393443950,1762661443446,-150.0,0.00019973,2]
[393443951,1762661443457,-1519.58990321,0.0002,2]
[393443952,1762661443466,-3950.0,0.0002,2]
[393443953,1762661443476,-7225.50848767,0.0002,2]
[393443954,1762661443486,-1283.13067365,0.0002,2]
[393443955,1762661443496,-7310.44140234,0.0002,2]
[393443956,1762661443506,-2170.1809773,0.0002,3]
[393443957,1762661443515,-1035.69073938,0.0002,2]
[393443958,1762661443525,-2838.22074283,0.0002,2]
[393443959,1762661443534,-8731.86705282,0.0002,2]
[393443960,1762661443543,-203.97,0.0002,2]
[393443961,1762661443553,-3500.0,0.0002,2]
[393443962,1762661443563,-64674.89835933,0.0002,2]
[393443963,1762661443574,-10822.52726064,0.0002,2]
[393443964,1762661443584,-1452.01192522,0.0002,5]
[393443965,1762661443594,-25367.37066554,0.0002,2]
[393443966,1762661443603,-57593.22134348,0.0002,5]
[393443967,1762661443613,-8300.0,0.0002,4]
[393443968,1762661443622,-10165.86502198,0.0002,2]
[393443969,1762661443632,-484.660239,0.0002,5]
[393443970,1762661443641,-201.25645,0.0002,5]
[393443971,1762661443651,-570.297092,0.0002,5]
[393443972,1762661443660,-184.12,0.0002,2]
[393443973,1762661443671,-200.0,0.0002,2]
[393443974,1762661443681,-1000.0,0.0002,7]
[393443975,1762661443691,-9008.40926204,0.0002001,2]
[393443976,1762661443700,-502.12377643,0.00020068,2]
[393443978,1762661443710,-533.0,0.00020091,2]
[393443979,1762661443718,-500.0,0.00020091,2]
[393443980,1762661443727,-484.660239,0.000201,2]
[393443981,1762661443737,-201.25645,0.000201,2]
[393443982,1762661443746,-570.297092,0.000201,2]
[393443983,1762661443756,-1000.0,0.00020116,2]
[393443984,1762661443765,-587.0,0.00020129,2]
[393443985,1762661443775,-1186.96,0.00020131,2]
[393443986,1762661443784,-7638.24,0.00020145,2]
[393443987,1762661443793,-299.99,0.00020145,7]
[393443988,1762661443803,-1717.38,0.00020145,2]
[393443989,1762661443812,-959.59,0.00020187,2]
[393443990,1762661443821,-533.0,0.00020228,2]
[393443991,1762661443831,-500.0,0.00020228,2]
[393443992,1762661443840,-10303.7927886,0.00020284,2]
[393443993,1762661443850,-2890.6412098,0.00020284,2]
[393443994,1762661443859,-2351.0,0.00020329,2]
[393443995,1762661443869,-289.18321269,0.00020355,2]
[393443996,1762661443878,-533.0,0.00020365,2]
[393443997,1762661443888,-500.0,0.00020365,2]
[393443998,1762661443897,-1186.96,0.00020405,2]
[393443999,1762661443907,-166.67,0.00020414,2]
[393444000,1762661443916,-533.0,0.00020502,2]
[393444001,1762661443926,-265.34756632,0.00020502,2]
[393444002,1762661443935,-162.61440694,0.00020506,2]
[393444003,1762661443945,-250.0,0.00020521,2]
[393444004,1762661443955,-549.09,0.00020547,2]
[393444005,1762661443964,-21315.44,0.00020548,2]
[393444006,1762661443977,-150.05270425,0.00020554,5]
[393444007,1762661443986,-906.0,0.00020561,2]
[393444008,1762661443996,-1189.0,0.00020561,2]
[393444009,1762661444005,-6661.0,0.00020575,2]
[393444010,1762661444015,-6478.0,0.00020575,2]
[393444011,1762661444024,-2142.0,0.00020575,2]
[393444012,1762661444034,-559.0,0.00020575,2]
[393444013,1762661444044,-240.66,0.00020595,2]
[393444014,1762661444054,-533.0,0.00020639,2]
[393444015,1762661444064,-150.0,0.00020665,2]
[393444016,1762661444073,-150.0,0.00020665,2]
[393444017,1762661444083,-150.0,0.00020665,2]
[393444018,1762661444092,-150.0,0.00020665,2]
[393444019,1762661444102,-150.0,0.00020665,2]
[393444020,1762661444111,-150.0,0.00020665,2]
[393444021,1762661444121,-150.0,0.00020665,2]
[393444022,1762661444131,-150.0,0.00020665,2]
[393444023,1762661444140,-150.0,0.00020665,2]
[393444024,1762661444150,-608.0,0.00020665,2]
[393444025,1762661444159,-1316.0,0.00020665,2]
[393444026,1762661444168,-3425.0,0.00020665,2]
[393444027,1762661444178,-574.0,0.00020665,2]
[393444028,1762661444187,-820.0,0.00020665,2]
[393444029,1762661444197,-1596.0,0.00020665,2]
[393444030,1762661444207,-813.0,0.00020665,2]
[393444031,1762661444217,-1273.0,0.00020665,2]
[393444032,1762661444227,-1187.03193284,0.00020679,2]
[393444033,1762661444237,-150.0,0.00020699,5]
[393444034,1762661444246,-22458.31516154,0.000207,2]
[393444035,1762661444256,-500.0,0.00020704,2]
[393444036,1762661444266,-533.0,0.00020776,2]
[393444037,1762661444276,-2299.086935,0.00020793,2]
[393444038,1762661444286,-644.989236,0.00020793,2]
[393444039,1762661444298,-1000.0,0.00020795,2]
[393444040,1762661444309,-510.45462,0.0002082,2]
[393444041,1762661444319,-223.05,0.00020837,2]
[393444042,1762661444329,-375.91,0.00020868,2]
[393444043,1762661444339,-533.0,0.00020913,2]
[393444044,1762661444349,-895.29491422,0.00021,2]
[393444045,1762661444359,-1182.16576715,0.00021,2]
[393444046,1762661444368,-195.13315988,0.00021,2]
[393444047,1762661444378,-20000.0,0.00021,2]
[393444048,1762661444388,-534.61479719,0.0002105,2]
[393444049,1762661444397,-1108.5327622,0.00021064,2]
[393444050,1762661444407,-353.6416507,0.00021068,2]
[393444051,1762661444418,-12399.31,0.00021068,2]
[393444052,1762661444427,-1000.0,0.00021076,2]
[393444053,1762661444436,-484.660239,0.00021303,3]
[393444054,1762661444446,-201.25645,0.00021303,3]
[393444055,1762661444456,-570.297092,0.00021303,3]
[393444056,1762661444466,-6316.24,0.0002137,2]
[393444057,1762661444476,-549.32,0.00021382,2]
[393444058,1762661444485,-478.20968403,0.000214,3]
[393444059,1762661444495,-200.0,0.0002145,2]
[393444060,1762661444506,-220.06229509,0.000215,2]
[393444061,1762661444515,-57446.01984656,0.000215,2]
[393444062,1762661444525,-240.66,0.00021531,2]
[393444063,1762661444535,-2812.082571,0.00021697,2]
[393444064,1762661444544,-247.3470927,0.00021764,2]
[393444065,1762661444554,-510.45462,0.0002182,2]
[393444066,1762661444563,-5000.0,0.00021918,2]
[393444067,1762661444572,-800.0,0.00021918,4]
[393444068,1762661444581,-800.0,0.00021918,4]
[393444069,1762661444591,-800.0,0.00021918,4]
[393444070,1762661444600,-800.0,0.00021918,4]
[393444071,1762661444610,-800.0,0.00021918,4]
[393444072,1762661444619,-800.0,0.00021918,4]
[393444073,1762661444629,-800.0,0.00021918,4]
[393444074,1762661444639,-800.0,0.00021918,4]
[393444075,1762661444648,-800.0,0.00021918,4]
[393444076,1762661444657,-800.0,0.00021918,4]
[393444077,1762661444667,-500.0,0.00021918,2]
[393444078,1762661444676,-150.0,0.00021918,2]
[393444079,1762661444686,-3098.0,0.00021968,2]
[393444080,1762661444695,-150.0,0.00021973,2]
[393444081,1762661444705,-823.0,0.00021988,2]
[393444082,1762661444714,-247595.38832254,0.00022,4]
[393444083,1762661444723,-15480.59,0.00022,7]
[393444084,1762661444732,-4108.04466577,0.00022,2]
[393444085,1762661444741,-160.97,0.00022,2]
[393444086,1762661444750,-788.30218358,0.00022,7]
[393444087,1762661444760,-478.20968403,0.00022,7]
[393444088,1762661444769,-478.20968403,0.00022016,2]
[393444089,1762661444778,-438.53661058,0.00022055,2]
[393444090,1762661444788,-489.85080667,0.000221,2]
[393444091,1762661444797,-238.0230109,0.0002211,2]
[393444092,1762661444806,-269.35917805,0.00022139,2]
[393444093,1762661444815,-484.660239,0.00022147,5]
[393444094,1762661444825,-201.25645,0.00022147,5]
[393444095,1762661444834,-570.297092,0.00022147,5]
[393444096,1762661444843,-156.203306,0.000222,2]
[393444097,1762661444852,-484.660239,0.000222,2]
[393444098,1762661444862,-201.25645,0.000222,2]
[393444099,1762661444871,-570.297092,0.000222,2]
[393444100,1762661444889,-158.42178585,0.00022314,2]
[393444101,1762661444901,-3292.0,0.00022317,2]
[393444102,1762661444911,-394.23,0.00022326,2]
[393444103,1762661444921,-250.61,0.00022337,2]
[393444104,1762661444931,-240.66,0.00022467,2]
[393444105,1762661444940,-35167.40568972,0.000225,2]
[393444106,1762661444950,-250.0,0.00022521,2]
[393444107,1762661444959,-627.4604344,0.00022522,2]
[393444108,1762661444969,-250.61,0.00022619,2]
[393444109,1762661444979,-518.00699589,0.0002271,2]
[393444110,1762661444988,-162.61440694,0.00022785,2]
[393444111,1762661444998,-510.45463,0.0002282,2]
[393444112,1762661445008,-19206.34413281,0.000229,2]
[393444113,1762661445018,-250.6062014,0.00022901,2]
[393444114,1762661445028,-223.05,0.00022921,2]
[393444115,1762661445039,-435.54771527,0.00023,2]
[393444116,1762661445048,-997.74325131,0.00023,2]
[393444117,1762661445058,-628.37975426,0.00023,7]
[393444118,1762661445067,-831.76,0.00023022,2]
[393444119,1762661445078,-415.88,0.00023022,2]
[393444120,1762661445087,-350.0,0.00023068,2]
[393444121,1762661445097,-2560.41114167,0.000231,2]
[393444122,1762661445106,-156.203306,0.00023102,3]
[393444123,1762661445116,-484.660239,0.00023102,3]
[393444124,1762661445125,-201.25645,0.00023102,3]
[393444125,1762661445135,-570.297092,0.00023102,3]
[393444126,1762661445145,-1000.0,0.00023183,2]
[393444127,1762661445155,-51668.18922415,0.000232,2]
[393444128,1762661445166,-240.66,0.00023403,2]
[393444129,1762661445175,-200.0,0.000235,2]
[393444130,1762661445186,-500.0,0.00023506,2]
[393444131,1762661445196,-906.0,0.00023561,2]
[393444132,1762661445206,-1189.0,0.00023561,2]
[393444133,1762661445216,-6661.0,0.00023575,2]
[393444134,1762661445226,-6478.0,0.00023575,2]
[393444135,1762661445237,-2142.0,0.00023575,2]
[393444136,1762661445246,-559.0,0.00023575,2]
[393444137,1762661445262,-450.0,0.00023616,2]
[393444138,1762661445272,-150.0,0.00023665,2]
[393444139,1762661445281,-150.0,0.00023665,2]
[393444140,1762661445291,-150.0,0.00023665,2]
[393444141,1762661445303,-150.0,0.00023665,2]
[393444142,1762661445313,-150.0,0.00023665,2]
[393444143,1762661445322,-608.0,0.00023665,2]
[393444144,1762661445331,-1316.0,0.00023665,2]
[393444145,1762661445341,-3425.0,0.00023665,2]
[393444146,1762661445351,-574.0,0.00023665,2]
[393444147,1762661445361,-820.0,0.00023665,2]
[393444149,1762661445526,-1596.0,0.00023665,2]
[393444150,1762661445536,-813.0,0.00023665,2]
[393444151,1762661445545,-1273.0,0.00023665,2]
[393444152,1762661445555,-1010.70883113,0.00024,2]
[393444153,1762661445569,-3600.0,0.00024,2]
[393444154,1762661445579,-16051.31326613,0.00024,2]
[393444155,1762661445589,-151.0,0.00024,7]
[393444156,1762661445599,-151.0,0.00024,7]
[393444157,1762661445608,-151.0,0.00024,7]
[393444158,1762661445617,-151.0,0.00024,7]
[393444159,1762661445627,-151.0,0.00024,7]
[393444160,1762661445636,-151.0,0.00024,7]
[393444161,1762661445646,-151.0,0.00024,7]
[393444162,1762661445655,-151.0,0.00024,7]
[393444163,1762661445664,-151.0,0.00024,7]
[393444164,1762661445674,-151.0,0.00024,7]
[393444165,1762661445683,-151.0,0.00024,7]
[393444166,1762661445692,-151.0,0.00024,7]
[393444167,1762661445700,-156.767732,0.00024,7]
[393444168,1762661445709,-151.0,0.00024,7]
[393444169,1762661445719,-151.0,0.00024,7]
[393444170,1762661445728,-151.0,0.00024,7]
[393444171,1762661445737,-151.0,0.00024,7]
[393444172,1762661445747,-1152.0,0.00024019,2]
[393444173,1762661445757,-550.0,0.00024164,2]
[393444174,1762661445770,-417.59165749,0.0002421,2]
[393444175,1762661445780,-3659.18911608,0.0002421,2]
[393444176,1762661445790,-151.0,0.0002421,7]
[393444177,1762661445800,-151.0,0.0002421,7]
[393444178,1762661445809,-448.418305,0.0002421,7]
[393444179,1762661445819,-151.0,0.0002421,7]
[393444180,1762661445829,-151.0,0.0002421,7]
[393444181,1762661445840,-151.0,0.0002421,7]
[393444182,1762661445850,-448.418305,0.0002421,7]
[393444183,1762661445859,-151.0,0.0002421,7]
[393444184,1762661445868,-151.0,0.0002421,7]
[393444185,1762661445878,-448.418305,0.0002421,7]
[393444186,1762661445887,-151.0,0.0002421,7]
[393444187,1762661445897,-151.0,0.0002421,7]
[393444188,1762661445906,-448.418305,0.0002421,7]
[393444189,1762661445916,-151.0,0.0002421,7]
[393444190,1762661445925,-185.1304,0.0002421,7]
[393444191,1762661445935,-151.0,0.0002421,7]
[393444192,1762661445944,-151.0,0.0002421,7]
[393444193,1762661445953,-151.0,0.0002421,7]
[393444194,1762661445964,-151.0,0.0002421,7]
[393444195,1762661445977,-151.0,0.0002421,7]
[393444196,1762661445987,-151.0,0.0002421,7]
[393444197,1762661445996,-160.974912,0.0002421,7]
[393444198,1762661446007,-151.0,0.0002421,7]
[393444199,1762661446016,-151.0,0.0002421,7]
[393444200,1762661446026,-791.536995,0.0002421,7]
[393444201,1762661446036,-791.536995,0.0002421,7]
[393444202,1762661446045,-791.536995,0.0002421,7]
[393444203,1762661446055,-151.0,0.0002421,7]
[393444204,1762661446065,-151.0,0.0002421,7]
[393444205,1762661446075,-151.0,0.0002421,7]
[393444206,1762661446085,-282.215836,0.0002421,7]
[393444207,1762661446094,-282.215836,0.0002421,7]
[393444208,1762661446104,-282.215836,0.0002421,7]
[393444209,1762661446114,-282.215836,0.0002421,7]
[393444210,1762661446123,-151.0,0.0002421,7]